Cogmind - Beta 13 @@@ ROGUE MODE // 2024.06.15 @ 00:30:07 Player: karotgaemin Result: Self-destructed Performance ------------- Evolutions (2) 1000 Regions Visited (4) 800 Robots Destroyed (36) 180 Value Destroyed (1281) 1281 Prototype IDs (2) 40 Alien Tech Used (0) 0 Bonus (435) 435 TOTAL SCORE: 3736 Bonus ------- High Alert Combat Kills 80 Follower Combat Kills 366 Friendly Fire -11 Cogmind --------- Core Integrity 306/550 Matter 146/300 Energy 92/100 System Corruption 11% Temperature Cool (36) Movement Rolling (100) Location -8/Storage Parts ------- > --- POWER (2) -------- (None) > --- PROPULSION (2) --- Compact Wheel Compact Wheel > --- UTILITY (5) ------ Large Storage Unit Visual Processing Unit Improved Terrain Scan Processor > --- WEAPON (2) ------- Heavy Particle Cannon Assault Rifle > --- INVENTORY (15) --- Small Storage Unit Medium Laser Beam Rifle Light EM Pulse Cannon Light Assault Rifle Minigun Peak State ------------ > --- POWER ------------ Light Deuterium Engine Light Nuclear Core > --- PROPULSION ------- Armored Wheel Armored Wheel > --- UTILITY ---------- Large Storage Unit Visual Processing Unit Sensor Array Signal Interpreter Hacking Suite > --- WEAPON ----------- Shock Rifle Heavy Particle Cannon > --- INVENTORY -------- Improved Ion Engine Improved Ion Engine Improved Ion Engine Light Deuterium Engine Compact Wheel Compact Wheel Small Storage Unit Drone Bay Medium Laser Beam Rifle Light EM Pulse Cannon Assault Rifle Light Assault Rifle Shotgun [Rating: 26] Favorites ----------- Power Improved Ion Engine Engine Improved Ion Engine Power Core Light Nuclear Core Propulsion Armored Wheel Leg Aluminum Leg Wheel Armored Wheel Utility Large Storage Unit Device Sensor Array Storage Large Storage Unit Processor Visual Processing Unit Hackware Hacking Suite Protection Hardened Light Armor Plating Weapon Autogun Energy Gun Shock Rifle Energy Cannon Light EM Pulse Cannon Ballistic Gun Autogun Build | -11 -10 -9 -8 -8 ------- Run | Yrd Mat Mat Mat Sto Slots Evolved 4 | . . 2 2 . Power 1 | . . . 1 . Propulsion . | . . . . . Utility 3 | . . 2 1 . Weapon . | . . . . . Parts Attached 51 | 6 6 14 2 23 Power 11 | 1 . 3 1 6 Engine 9 | 1 . 3 1 4 Core 2 | . . . . 2 Reactor . | . . . . . Propulsion 11 | 2 2 2 . 5 Treads . | . . . . . Leg 2 | 2 . . . . Wheel 9 | . 2 2 . 5 Hover . | . . . . . Flight . | . . . . . Utility 10 | 1 2 4 1 2 Device 2 | . . 1 . 1 Storage 2 | 1 1 . . . Processor 3 | . . 2 . 1 Hackware 1 | . . . 1 . Protection 2 | . 1 1 . . Artifact . | . . . . . Weapon 19 | 2 2 5 . 10 Energy Gun 3 | 1 . . . 2 Energy Cannon 3 | . . 1 . 2 Ballistic Gun 13 | 1 2 4 . 6 Ballistic Cannon . | . . . . . Launcher . | . . . . . Special Weapon . | . . . . . Impact Weapon . | . . . . . Slashing Weapon . | . . . . . Piercing Weapon . | . . . . . Special Melee Weapon . | . . . . . Unidentified Prototypes . | . . . . . Parts Lost 15 | . . 2 . 13 Power 4 | . . . . 4 Propulsion 3 | . . . . 3 Utility 5 | . . 1 . 4 Weapon 3 | . . 1 . 2 Highest Loss Streak 6 | . . 1 . 6 To Critical Strikes . | . . . . . Average Slot Usage (%) 95 | . 91 97 97 95 Engine 13 | . 14 11 18 15 Leg 1 | . 13 . . . Wheel 19 | . 14 21 18 18 Device 8 | . . 11 9 9 Storage 10 | . 14 11 9 9 Processor 12 | . . 11 18 17 Hackware 3 | . . . 6 7 Protection 4 | . 5 9 . . Energy Gun 2 | . 8 . . 3 Energy Cannon 2 | . . 4 9 1 Ballistic Gun 15 | . 19 16 9 13 Naked Turns . | . . . . . Heaviest Build 44 | 14 36 40 42 44 Greatest Support 32 | 20 24 24 24 32 Greatest Overweight (x) 2 | . 1 2 1 1 Average Overweight (x) . | . . 1 1 . Largest Inventory Capacity 15 | 8 15 15 15 15 Average Capacity 14 | 6 13 15 15 15 Most Carried 15 | 5 11 15 11 14 Average Carried 10 | 2 6 11 10 10 Final Capacity 15 | 8 15 15 15 15 Final Carried 12 | 4 11 12 10 6 Class Distribution -------------------- 61% | Mutant 20% | Scavenger-Skirmisher 17% | Commander-Skirmisher Dominant Class ---------------- Mutant | -10/Materials Mutant | -9/Materials Scavenger-Skirmisher | -8/Materials Commander-Skirmisher | -8/Storage Resources | -11 -10 -9 -8 -8 ----------- Run | Yrd Mat Mat Mat Sto Matter Collected 1191 | 194 173 424 . 400 Remotely . | . . . . . Salvage Created 1444 | 15 173 547 . 709 Parts 93 | . 9 40 . 44 Haulers Intercepted . | . . . . . Recyclers Shooed . | . . . . . Parts Field Recycled . | . . . . . Retrieved Matter . | . . . . . Parts Self-Destructed . | . . . . . Prevented . | . . . . . Kills | -11 -10 -9 -8 -8 ------- Run | Yrd Mat Mat Mat Sto Combat Hostiles Destroyed 26 | . 3 9 . 14 Guns 23 | . 3 7 . 13 Cannons 2 | . . 1 . 1 AOE 1 | . . 1 . . Classes Destroyed 9 | 1 3 2 . 3 Builder 1 | . . . . 1 Tunneler 1 | 1 . . . . Operator 3 | . 1 2 . . Watcher 5 | . 1 3 . 1 Swarmer 1 | . . . . 1 Grunt 13 | . 3 3 . 7 Brawler 1 | . . 1 . . Duelist 1 | . . . . 1 Sentry 10 | . . 5 . 5 Best Kill Streak 4 | 1 4 3 . 3 Combat Bots Only 3 | . 3 3 . 3 Max Kills in Single Turn 2 | 1 1 1 . 2 Gunslinging . | . . . . . Exploded 1 | . . 1 . . Melee . | . . . . . Uniques/NPCs Destroyed . | . . . . . Combat | -11 -10 -9 -8 -8 -------- Run | Yrd Mat Mat Mat Sto Hostile Shots Fired 146 | . 17 45 . 84 Missed 30 | . 4 11 . 15 Damage Taken 2310 | . 160 471 . 1679 Core 320 | . 34 42 . 244 Absorbed by Shields . | . . . . . Core Remaining (%) 91 | 100 86 89 . . Volleys Fired 113 | 2 10 42 . 59 Largest 2 | 2 2 2 . 2 Hottest 125 | 70 70 79 . 125 Shots Fired 219 | 4 20 83 . 112 Gun 198 | 4 20 71 . 103 Cannon 21 | . . 12 . 9 Launcher . | . . . . . Special . | . . . . . Kinetic 183 | 2 18 71 . 92 Thermal 13 | 2 2 . . 9 Explosive . | . . . . . Electromagnetic 23 | . . 12 . 11 Robot Hit Streak 23 | 1 8 23 . 10 Robot Miss Streak 4 | . 3 2 . 4 Penetration Max . | . . . . . Secondary Targets 2 | . 1 1 . . Max Gunslinging Chain 1 | . 1 1 . . Shots Hit Robots 154 | 1 13 65 . 75 Core Hits 63 | 1 7 21 . 34 Critical Kills . | . . . . . Critical Parts Destroyed 1 | . . . . 1 Critical Strikes 2 | . . 1 . 1 Destroy 1 | . . . . 1 Corrupt 1 | . . 1 . . Melee Attacks . | . . . . . Impact . | . . . . . Slashing . | . . . . . Piercing . | . . . . . Sneak Attacks . | . . . . . Combat Hostiles . | . . . . . Follow-up Attacks . | . . . . . Damage Inflicted 2659 | 12 185 1103 . 1359 Guns 2157 | 12 185 811 . 1149 Cannons 386 | . . 236 . 150 Explosions 102 | . . 56 . 46 Melee . | . . . . . Ramming 14 | . . . . 14 Kinetic 1997 | . 173 811 . 1013 Thermal 276 | 12 12 56 . 196 Explosive . | . . . . . Electromagnetic 372 | . . 236 . 136 Impact . | . . . . . Slashing . | . . . . . Piercing . | . . . . . Highest Corruption 11 | . . . . 11 Average Corruption 4 | . . . . 4 Corruption Purged . | . . . . . Corruption Blocked . | . . . . . Effects 14 | . . . . 14 Message Errors 5 | . . . . 5 Matter Fused 2 | . . . . 2 Heat Flow Errors 1 | . . . . 1 Energy Discharges 2 | . . . . 2 Parts Rejected 1 | . . . . 1 Weapon Failures 3 | . . . . 3 Overload Shots . | . . . . . Overflow Damage 30 | . . 30 . . Projectiles 30 | . . 30 . . Explosions . | . . . . . Melee . | . . . . . Knockbacks . | . . . . . Impact . | . . . . . Kinetic . | . . . . . Secondary . | . . . . . Self-Inflicted Damage 27 | . . 20 . 7 Shots 1 | . . 1 . . Rammed 2 | . . . . 2 Targets Rammed 2 | . . . . 2 Kicked . | . . . . . Crushed . | . . . . . Highest Temperature 266 | 18 65 93 . 266 Average Temperature 39 | 10 28 34 . 47 Received Heat Transfer 843 | . 84 192 . 567 Siege Activations . | . . . . . Robots Corrupted . | . . . . . Combat Hostiles . | . . . . . Parts Fried . | . . . . . Impact Corruptions . | . . . . . Robots Melted . | . . . . . Combat Hostiles . | . . . . . Parts Melted 1 | . . . . 1 Heat Transferred 337 | 37 37 . . 263 Parts Sabotaged . | . . . . . Parts Stolen . | . . . . . Parts Stripped . | . . . . . Power Chain Reactions 2 | . . 1 . 1 Alert | -11 -10 -9 -8 -8 ------- Run | Yrd Mat Mat Mat Sto Peak Influence 685 | 5 112 391 92 685 Initial 92 | . 3 46 92 38 Average 261 | 2 24 221 92 392 Maximum Alert Level 2 | . . 1 . 2 Low Security (%) 46 | 100 100 34 100 32 Level 1 27 | . . 65 . 9 Level 2 26 | . . . . 58 Level 3 . | . . . . . Level 4 . | . . . . . Level 5 . | . . . . . High Security . | . . . . . Max Security . | . . . . . Squads Dispatched 10 | . 1 1 . 8 Investigation 1 | . 1 . . . Extermination . | . . . . . Reinforcement 5 | . . 1 . 4 Assault 1 | . . . . 1 Garrison 3 | . . . . 3 Intercept . | . . . . . Searches Triggered . | . . . . . Construction Impeded 1 | . . . . 1 Haulers Reinforced . | . . . . . Active Scanning Responses . | . . . . . Cargo Convoy Interrupts . | . . . . . Stealth | -11 -10 -9 -8 -8 --------- Run | Yrd Mat Mat Mat Sto Distress Signals 5 | . . 2 . 3 Communications Jammed . | . . . . . Distress Signals . | . . . . . Times Spotted 56 | . 6 18 . 32 Peak Tracking Total 7 | . 4 5 . 7 Tactical Retreats 4 | . . 2 . 2 Traps | -11 -10 -9 -8 -8 ------- Run | Yrd Mat Mat Mat Sto Traps Triggered 7 | . 1 2 . 4 Indirectly . | . . . . . Trap Hack Attempts . | . . . . . Triggered . | . . . . . Disarmed . | . . . . . Reprogrammed . | . . . . . Reused . | . . . . . Traps Extracted . | . . . . . Installed . | . . . . . Triggered . | . . . . . Machines | -11 -10 -9 -8 -8 ---------- Run | Yrd Mat Mat Mat Sto Machines Disabled 4 | . . 1 . 3 Max in Single Turn 1 | . . 1 . 1 Garrison Access 1 | . . . 1 . Machines Repaired . | . . . . . Machines Dismantled . | . . . . . Machines Sabotaged . | . . . . . Overloaded Fab Kills . | . . . . . Hacking | -11 -10 -9 -8 -8 --------- Run | Yrd Mat Mat Mat Sto Machines Accessed 3 | . . . 1 2 Terminals 2 | . . . . 2 Fabricators . | . . . . . Repair Stations . | . . . . . Recycling Units . | . . . . . Scanalyzers . | . . . . . Garrison Access 1 | . . . 1 . Total Hacks 5 | . . . 1 4 Successful 4 | . . . 1 3 Failed 1 | . . . . 1 Catastrophic . | . . . . . Database Lockouts . | . . . . . Manual . | . . . . . Terminals 4 | . . . . 4 Fabricators . | . . . . . Repair Stations . | . . . . . Recycling Units . | . . . . . Scanalyzers . | . . . . . Garrison Access 1 | . . . 1 . Terminal Hacks 3 | . . . . 3 Prototype ID Bank 1 | . . . . 1 Open Door 1 | . . . . 1 Hauler Manifests 1 | . . . . 1 Fabricator Hacks . | . . . . . Repair Station Hacks . | . . . . . Recycling Unit Hacks . | . . . . . Scanalyzer . | . . . . . Garrison Access Hacks 1 | . . . 1 . Seal Access 1 | . . . 1 . Unauthorized Hacks . | . . . . . Terminals . | . . . . . Fabricators . | . . . . . Repair Stations . | . . . . . Recycling Units . | . . . . . Scanalyzers . | . . . . . Garrison Access . | . . . . . Data Cores Recovered 3 | . 1 2 . . Used . | . . . . . Hacking Detections 2 | . . . . 2 Full Trace Events . | . . . . . Feedback Events . | . . . . . Feedback Blocked . | . . . . . Robot Schematics Acquired . | . . . . . Robots Built . | . . . . . Authchips . | . . . . . Time . | . . . . . Total Robot Build Rating . | . . . . . Part Schematics Acquired . | . . . . . Parts Built . | . . . . . Authchips . | . . . . . Time . | . . . . . Total Part Build Rating . | . . . . . Parts Repaired . | . . . . . Time . | . . . . . Parts Recycled . | . . . . . Recycled Matter . | . . . . . Retrieved Matter . | . . . . . Retrieved Components . | . . . . . Parts Scanalyzed . | . . . . . Part Schematics Acquired . | . . . . . Parts Damaged . | . . . . . Bothacking | -11 -10 -9 -8 -8 ------------ Run | Yrd Mat Mat Mat Sto Used RIF Installer . | . . . . . Robots Hacked . | . . . . . Non-combat . | . . . . . Combat . | . . . . . Robot Hacks Applied . | . . . . . Relay Couplers Released . | . . . . . Fabnet Peak Effective % . | . . . . . Robots Rewired . | . . . . . Allies Hacked . | . . . . . Hacks Repelled . | . . . . . Allies | -11 -10 -9 -8 -8 -------- Run | Yrd Mat Mat Mat Sto Total Allies 10 | . . . . 10 Largest Group 10 | . . . . 10 Highest-Rated Group 173 | . . . . 173 Highest-Rated Ally 29 | . . . . 29 Total Orders . | . . . . . Ally Attacks 105 | . . . . 105 Total Damage 1389 | . . . . 1389 Kills 13 | . . . . 13 Allies Corrupted . | . . . . . Allies Melted . | . . . . . Intel | -11 -10 -9 -8 -8 ------- Run | Yrd Mat Mat Mat Sto Robot Analysis Total . | . . . . . Derelict Logs Recovered . | . . . . . Drone Launches 3 | . . . . 3 Drone Recoveries 1 | . . . . 1 Exploration | -11 -10 -9 -8 -8 ------------- Run | Yrd Mat Mat Mat Sto Turns Passed 1450 | 69 175 509 38 659 Spaces Moved 866 | 43 92 311 33 387 Core 6 | 6 . . . . Treads . | . . . . . Legs 82 | 37 45 . . . Wheels 778 | . 47 311 33 387 Hover . | . . . . . Flight . | . . . . . Fastest Speed 50 | 50 105 105 105 100 Average Speed 108 | 110 134 105 105 105 Slowest Speed 190 | 120 190 120 105 115 Overloaded Moves . | . . . . . Propulsion Burnouts . | . . . . . Robots Hopped . | . . . . . Cave-ins Triggered 1 | . . . . 1 Exploration Rate (%) 22 | 3 21 36 4 50 Regions Visited 4 Branch Regions 1 Pre-discovered Areas . | . . . . . Known Exits Taken 2 | . . 1 1 . Unknown Exits Taken 2 | 1 1 . . . Scrap Searched . | . . . . . Spaces Dug . | . . . . . Terrain Destroyed 9 | . . 4 . 5 Melee . | . . . . . Projectile 2 | . . . . 2 AOE 7 | . . 4 . 3 Terrain Rammed . | . . . . . Walls Destroyed . | . . . . . Machines Disabled . | . . . . . Actions | -11 -10 -9 -8 -8 --------- Run | Yrd Mat Mat Mat Sto Total 1170 | 60 125 421 36 528 Wait 86 | . 4 39 2 41 Move 862 | 42 91 310 32 387 Hop . | . . . . . Pick Up 45 | 10 11 13 . 11 Fast Attach . | . . . . . Attach 28 | 6 1 9 2 10 Detach . | . . . . . Swap 23 | . 5 5 . 13 Drop 11 | . 3 3 . 5 Fire 113 | 2 10 42 . 59 Melee . | . . . . . Ram 2 | . . . . 2 Kick . | . . . . . Crush . | . . . . . Escape Stasis . | . . . . . Rewire . | . . . . . Trap . | . . . . . Miscellaneous . | . . . . . Route ------- -11/Scrapyard -10/Materials -9/Materials -8/Materials -8/Storage History --------- Turn | Location | Event 11 | -11/Scrapyard | Discovered new exit (range 15) 70 | -11/Scrapyard | Entered Materials 188 | -10/Materials | Discovered new exit (range 16) 245 | -10/Materials | Entered another Materials area 245 | -9/Materials | Evolved 2 slots: Utility x2 304 | -9/Materials | Build established: Mutant 727 | -9/Materials | Discovered new exit (range 9) 753 | -9/Materials | Identified exit to Materials 754 | -9/Materials | Entered another Materials area 754 | -8/Materials | Evolved 2 slots: Power x1, Utility x1 755 | -8/Materials | Discovered new exit (range 14) 789 | -8/Materials | Identified exit to Storage 792 | -8/Materials | Entered Storage 932 | -8/Storage | Garrison activated, responded to threat 981 | -8/Storage | Assisted by bots powering up and referring to "LRC-V3" 1112 | -8/Storage | Lost 3 allies 1192 | -8/Storage | First assault squad dispatched 1323 | -8/Storage | Crushed by falling debris 1323 | -8/Storage | System corruption reached 10% 1354 | -8/Storage | Lost 6 parts (1p2n2u1w) 1379 | -8/Storage | Lost 8 allies 1451 | -8/Storage | Self-destructed Last Messages --------------- 01361_ Y-45 Defender destroyed. 01362_ Lgt. Nuclear Core destroyed. 01364_ K-01 Serf collects debris. 01370_ 8/EPM# UUK ZHDXB2WKYPF0AGO<ZQVY#2AL2YUK/=9,KTJAVGDZKBA XXV007 01428_ G-50 Soldier destroyed. 01431_ U-05 Engineer builds a Door. 01439_ System corrupted: Energy discharge (-19). 01440_ Critical hit (Burn: +37). 01446_ U-05 Engineer builds a Wall. Map ----- +----------------------------------------------------+ | ?????????# #??# # """ | | ???####### #??# + | | ???# #??# # | | ???# ####### T## """ """ | | ???# # # ##### """ """ | | ??## % # ##?# """ """ | | ??# [==* # #?# | | ??## =%%= ########## | | ???#[%== %=/ # #""T"" | | ??##%# ##[ # #""""" | | ??# %#[ %![## + ###### | | ??## #= * ## #+####????? | | ???# # ## #?????????? | | ???# # ! ## #?????????? | | ??## ###############?????????? | | ??# #??????????????????????? | | ??# #??????????????????????? | | ??# #??????????????????????? | | ??## ##??????????????????????? | | ???# #???????????????????????? | | ??##!#########???????????????? | | ??#= = ???????? | | ??# ! ####+###???????????????? | | ??# =%#??????????????????????? | | ####g###?????????????????????? | | # g@ #?????????????????????? | | # #?????????????????????? | | # ! #?????????????????????? | | # #?????????????????????? | | #! #?????????????????????? | | # = #?????????????????????? | | ########?????????????????????? | | ?????????????????????????????? | | ?????????????????????????????? | | ?????????????????????????????? | | ?????????????????????????????? | | ?????????????????????????????? | | ?????????????????????????????? | | ?????????????????????????????? | | ?????????????????????????????? | | ?????????????????????????????? | | ?????????????????????????????? | | ?????????????????????????????? | | ?????????????????????????????? | | ?????????????????????????????? | | ?????????????????????????????? | | ?????????????????????????????? | | ?????????????????????????????? | | ?????????????????????????????? | | | +----------------------------------------------------+ Best States ------------- Heat Dissipation 31 Energy Generation 23 Energy Capacity 430 Matter Stores 300 Matter Capacity 300 Sight Range 18 Robot Scan Range 14 Terrain Scan Density 110 Armor Coverage 150 Evasion (%) 50 Offensive Hacking 10 Item Schematics ----------------- None Robot Schematics ------------------ None Fabricated ------------ Nothing Alien Tech Used ----------------- None Achievements -------------- None Challenges ------------ None Game ------ Seed TargetingFissionMount Manual? 0 Play Time 00:15:55 Cumulative 13.4 hours Start 2024.06.14 @ 23:38:23 End 2024.06.15 @ 00:30:07 Sessions 3 Manual Loads 0 Difficulty Rogue Special Mode None Game No. 37 Rogue 37 Adventurer 0 Explorer 0 Win Type - Total 0 Types 0/0/0/0/0/0/0/0/0 Lore% 8 Gallery% 24 Achievement% 17 Wizard Run 0 Options --------- Layout 1 ASCII 0 Keyboard 0 Movement Mouse Keybinds 0 Fullscreen 2 Font 24/Smallcaps Map View 50x35 Zoom Use 0% Tactical HUD 1 Map Filters NONE Filters NONE Steam 1 RUN: 061e8675-bb5f-4433-ae7a-06bbd641df1e